[Event "Budapest One Week IM-A 03-2025"]
[Site "Budapest"]
[Date "2025.03.22"]
[Round "9.2"]
[White "Chakrabarty, Reyaansh"]
[Black "Nakahara, Kan"]
[Result "1/2-1/2"]
[Annotator "TA"]
[ECO "C50"]
[WhiteElo "2181"]
[BlackElo "2113"]
[PlyCount "34"]
[EventDate "2025.03.17"]
[EventType "tourn"]
[EventCountry "HUN"]
[SourceTitle "playchess.com"]
[Source "ChessBase"]
[SourceQuality "1"]
[TimeControl "5400+30"]

{[%evp 13,34,21,21,8,17,10,33,17,30,11,21,19,20,8,1,1,3,0,0,-8,50,19,29]} 1. e4 {[%emt 0:07:02]} e5 {[%emt 0:00:22]} 2. Nf3 {[%emt 0:00:05]} Nc6 {[%emt 0:00:05]} 3. Bc4 {[%emt 0:00:02]} Nf6 {[%emt 0:00:06]} 4. d3 {[%emt 0:00:02]} Bc5 {[%emt 0:00:29]} 5. O-O {[%emt 0:00:05]} d6 {[%emt 0:00:20]} 6. c3 {[%emt 0:00:10]} a6 {[%emt 0:00:31]} 7. a4 {[%emt 0:01:01]} h6 {[%emt 0:04:58]} 8. Nbd2 {[%emt 0:00:34] C54: Giuoco Piano: 4 c3 Nf6, main lines with 5 d4 and 5 d3.} O-O {[%emt 0:00:22]} 9. h3 {[%emt 0:00:16]} Bb6 {[%emt 0:06:12]} 10. Re1 {[%emt 0:01:20] White is slightly better.} Re8 {[%emt 0:02:20]} 11. Ba2 {[%emt 0:14:47]} Be6 {[%emt 0:03:57]} 12. Bxe6 {[%emt 0:00:02]} Rxe6 {[%emt 0:01:13]} 13. Nc4 {[%emt 0:00:58]} Ba7 {[%emt 0:00:26]} 14. Qc2 {[%emt 0:07:57]} d5 {[%emt 0:09:38]} 15. Ne3 {[%emt 0:05:39]} Bxe3 $146 (15... dxe4 16. dxe4 Ne7 17. b3 Ng6 18. Nf5 Kh7 19. Rd1 Qe8 20. g3 Ne7 21. N3h4 Nxf5 22. Nxf5 Rd8 {1-0 Kubicka,A (2273)-Vidruska,R (2029) Titled Tuesday intern op 23rd Nov blitz 2021 (3)}) 16. Bxe3 d4 ({Black should play} 16... a5 $11) 17. cxd4 $14 exd4 {Weighted Error Value: White=0.08 (flawless) /Black=0.14 (very precise)   Mistake:       	---       	Black=1      OK:         	White=3     	Black=3} 1/2-1/2

[Event "Budapest One Week IM-A 03-2025"]
[Site "Budapest"]
[Date "2025.03.22"]
[Round "9.3"]
[White "Singh, Siddharth"]
[Black "Tscheuschner, Georg"]
[Result "1-0"]
[Annotator "TA"]
[ECO "B13"]
[WhiteElo "2239"]
[BlackElo "2236"]
[PlyCount "79"]
[EventDate "2025.03.17"]
[EventType "tourn"]
[EventCountry "HUN"]
[SourceTitle "playchess.com"]
[Source "ChessBase"]
[SourceQuality "1"]
[TimeControl "5400+30"]

{[%evp 9,79,17,15,13,12,8,11,1,6,2,15,3,4,0,14,-3,2,-13,18,25,30,8,5,2,19,20,22,13,18,20,30,18,62,42,54,45,47,43,67,57,74,74,104,107,116,122,134,127,167,155,162,134,162,131,508,500,500,481,452,442,488,474,1745,1648,1418,1600,29981,6729,29995,29991,29991,29992]} 1. e4 {[%emt 0:00:03]} c6 {[%emt 0:00:15]} 2. d4 {[%emt 0:00:20]} d5 {[%emt 0:00:05]} 3. exd5 {[%emt 0:01:20]} cxd5 {[%emt 0:00:04]} 4. Nf3 {[%emt 0:00:06]} Nc6 {[%emt 0:00:18]} 5. Bb5 {[%emt 0:00:07]} e6 {[%emt 0:03:42]} 6. O-O {[%emt 0:00:46] B13: Caro-Kann: Exchange Variation and Panov-Botvinnik Attack.} Nf6 {[%emt 0:00:33]} 7. Ne5 {[%emt 0:00:05]} Bd7 {[%emt 0:00:25]} 8. Nxd7 {[%emt 0:00:08] The position is equal.} Qxd7 {[%emt 0:00:17]} 9. c3 {[%emt 0:00:07]} Bd6 {[%emt 0:00:45]} 10. Nd2 {[%emt 0:00:22]} O-O {[%emt 0:00:58]} 11. Re1 {[%emt 0:02:01]} Qc7 {[%emt 0:02:05] The main line 11...Qc7 scores better than 11...a6.} 12. Nf1 {[%emt 0:02:17]} a6 {[%emt 0:09:08]} 13. Bd3 {[%emt 0:01:48]} Bf4 {[%emt 0:03:07]} 14. Bxf4 $146 {[%emt 0:02:49]} ({Predecessor:} 14. Ng3 Bxc1 15. Rxc1 g6 16. Qf3 Kg7 17. Ne2 Qb6 18. Rb1 Rae8 19. Nf4 e5 20. dxe5 Rxe5 21. Rxe5 Nxe5 {0-1 Gorshtein,I (2382)-Vogel,R (2462) EU-chT U18 Bad Blankenburg 2018 (2.1)}) 14... Qxf4 {[%emt 0:00:02]} 15. g3 {[%emt 0:00:16]} Qc7 {[%emt 0:01:32]} 16. f4 {[%emt 0:00:51]} Na5 {[%emt 0:02:21]} 17. Nd2 {[%emt 0:03:20]} g6 {[%emt 0:04:12]} 18. a4 {[%emt 0:02:36]} Ne8 {[%emt 0:09:20]} 19. Qe2 {[%emt 0:01:58]} Nd6 {[%emt 0:00:30]} 20. b4 {[%emt 0:02:07]} Nac4 {[%emt 0:00:16]} 21. Nxc4 {[%emt 0:00:10]} dxc4 {[%emt 0:01:19]} 22. Bc2 {[%emt 0:00:33]} a5 {[%emt 0:02:07]} 23. b5 {[%emt 0:00:32]} Rfd8 {[%emt 0:12:30]} 24. Qf3 {[%emt 0:05:27]} Rd7 {[%emt 0:07:49]} 25. Re5 {[%emt 0:01:48][%cal Be1e5,Be5g5,Bg5g6][%mdl 32]} Qd8 {[%emt 0:03:09]} 26. Rae1 {[%emt 0:02:54]} Rc8 {[%emt 0:13:06]} 27. h4 {[%emt 0:03:44] White is much more active.} b6 {[%emt 0:01:32]} 28. h5 {[%emt 0:00:30]} Qf8 {[%emt 0:07:14]} 29. hxg6 {[%emt 0:01:43][%csl Oe5] Strong Square White (e5)} hxg6 {[%emt 0:01:16]} 30. Rg5 {[%emt 0:00:18][%cal Oc2g6] Strongly threatening Bxg6!.} Nf5 {[%emt 0:03:40]} 31. Qg4 {[%emt 0:07:44][%cal Rc2f5]} Qa3 $2 {[%emt 0:01:19][%mdl 8192] Loses the game.} (31... Re7 $16 32. Re5 Rce8) 32. Bxf5 $18 {[%emt 0:07:05]} exf5 {[%emt 0:02:14] [#]} 33. Rxg6+ {[%emt 0:00:06][%mdl 512]} fxg6 {[%emt 0:00:08]} 34. Qxg6+ {[%emt 0:00:03]} Rg7 {[%emt 0:01:17]} 35. Qe6+ {[%emt 0:00:06]} (35. Qxf5 Qf8 (35... Rxg3+ $2 {is the wrong capture.} 36. Kf2 $18) 36. Qe6+ Kh8 $17) 35... Kh8 {[%emt 0:01:46]} (35... Rf7 $142) 36. Qxc8+ {[%emt 0:00:59]} Rg8 {[%emt 0:00:10]} 37. Qxf5 {[%emt 0:01:24]} Rxg3+ {[%emt 0:00:50]} 38. Kh2 {[%emt 0:01:12] Intending Re8+ and mate.} Rg6 {[%emt 0:04:37]} 39. Qxg6 {[%emt 0:01:03]} Qb2+ {[%emt 0:00:13]} 40. Qg2 {[%emt 0:00:12] Weighted Error Value: White=0.06 (flawless) /Black=0.81  Loses game:     	---       	Black=1      Mistake:       	---       	Black=1      Inaccurate:     	---       	Black=4      OK:         	White=14    	Black=4      Best:        	White=1     	Black=1      Brilliant:      	White=1     	---} 1-0

[Event "Budapest One Week IM-A 03-2025"]
[Site "Budapest"]
[Date "2025.03.22"]
[Round "9.4"]
[White "Ratsma, Midas"]
[Black "Rydstrom, Tom"]
[Result "1/2-1/2"]
[Annotator "TA"]
[ECO "C41"]
[WhiteElo "2268"]
[BlackElo "2301"]
[PlyCount "25"]
[EventDate "2025.03.17"]
[EventType "tourn"]
[EventCountry "HUN"]
[SourceTitle "playchess.com"]
[Source "ChessBase"]
[SourceQuality "1"]
[TimeControl "5400+30"]

{[%evp 14,25,54,50,52,31,93,54,74,39,28,21,84,76]} 1. e4 {[%emt 0:00:02]} e5 {[%emt 0:03:30]} 2. Nf3 {[%emt 0:00:10]} d6 {[%emt 0:00:04]} 3. d4 {[%emt 0:00:15]} exd4 {[%emt 0:00:03]} 4. Nxd4 {[%emt 0:00:10]} Nf6 {[%emt 0:00:04]} 5. Nc3 {[%emt 0:00:35]} Be7 {[%emt 0:00:05]} 6. Bf4 {[%emt 0:00:46]} O-O {[%emt 0:00:05]} 7. Qd2 {[%emt 0:00:13]} a6 {[%emt 0:02:52]} 8. O-O-O {[%emt 0:02:43]} b5 {[%emt 0:05:02] C41: Philidor Defence.} 9. a3 {[%emt 0:00:37]} Bd7 {[%emt 0:03:19]} (9... c5 $14 10. Nb3 c4) 10. f3 {[%emt 0:03:33] White is more active.} Nc6 $146 {[%emt 0:00:07]} (10... Qc8 11. g4 Rd8 12. Nf5 Bf8 13. Rg1 Nc6 14. h4 Ne5 15. Bxe5 dxe5 16. Qh2 Bxf5 17. exf5 Rxd1+ 18. Nxd1 {1-0 Frank,E (2129)-Frank,R (1528) Neumarkt am Wallersee op 12th 2013 (3)}) 11. Nf5 {[%emt 0:07:02]} Bxf5 {[%emt 0:01:18]} 12. exf5 {[%emt 0:00:08]} Rb8 {[%emt 0:01:41]} (12... Qb8 $1 $11) 13. g4 {[%emt 0:22:48] Weighted Error Value: White=0.24 (precise) /Black=0.35  Mistake:       	---       	Black=2      Inaccurate:     	White=2     	---        Best:        	White=1     	Black=1} 1/2-1/2

[Event "Budapest One Week IM-A 03-2025"]
[Site "Budapest"]
[Date "2025.03.22"]
[Round "9.5"]
[White "Foldes, Marton Gabor"]
[Black "Horvath, David"]
[Result "1/2-1/2"]
[Annotator "TA"]
[ECO "B12"]
[WhiteElo "2332"]
[BlackElo "2279"]
[PlyCount "28"]
[EventDate "2025.03.17"]
[EventType "tourn"]
[EventCountry "HUN"]
[SourceTitle "playchess.com"]
[Source "ChessBase"]
[SourceQuality "1"]
[TimeControl "5400+30"]

{[%evp 17,28,3,10,10,10,0,1,-12,-16,-13,0,-8,35]} 1. e4 c6 2. d4 d5 3. e5 Bf5 4. Nf3 e6 5. Be2 c5 6. c3 Nc6 7. O-O cxd4 8. cxd4 Nge7 {[%cal Bg8e7,Be7c8,Bc8b6][%mdl 32]} 9. Nc3 Nc8 {The position is equal.} 10. Be3 {B12: Caro-Kann: Advance Variation.} Be7 11. Rc1 {11.Rc1 was played by the boomers.} Nb6 12. Nd2 O-O 13. f4 Bg6 14. a3 $146 (14. g4 f5 15. exf6 Bxf6 16. Nf3 Rc8 17. Ne5 Bxe5 18. fxe5 Nc4 19. Bxc4 dxc4 20. Qd2 Rxf1+ 21. Rxf1 {0-1 Rudzinska,M (2241)-Voit,D (2343) Wch Rapid (Women) 2023 (10)}) 14... f6 {A rather calm draw.   Weighted Error Value: White=0.06 (flawless) /Black=0.04 (flawless)   Inaccurate:     	---       	Black=1      OK:         	White=1     	Black=3} 1/2-1/2